fUSD/lending_fUSD_20250112
["ID","MTS","AMOUNT","RATE_DAILY","PERIOD"]
[348625595,1736686233224,-1013.44,9.975e-05,2]
[348625596,1736686233233,-500.0,9.975e-05,2]
[348625597,1736686233243,-500.0,9.975e-05,2]
[348625598,1736686233252,-500.0,9.975e-05,2]
[348625599,1736686233262,-500.0,9.975e-05,2]
[348625600,1736686233271,-3452.0,9.975e-05,2]
[348625601,1736686233281,-500.0,9.975e-05,2]
[348625602,1736686233290,-167.76730515,9.975e-05,2]
[348625603,1736686233304,-1339.85,9.975e-05,2]
[348625604,1736686233314,-500.0,9.975e-05,2]
[348625605,1736686233323,-500.0,9.975e-05,2]
[348625606,1736686233333,-2949.27,9.975e-05,2]
[348625607,1736686233342,-500.0,9.975e-05,2]
[348625608,1736686233351,-500.0,9.975e-05,2]
[348625609,1736686233360,-9945.16,9.975e-05,2]
[348625610,1736686233370,-437.95280794,9.975e-05,2]
[348625611,1736686233380,-642.0362101,9.975e-05,2]
[348625612,1736686233389,-500.0,9.975e-05,2]
[348625613,1736686233399,-1452.51,9.975e-05,2]
[348625614,1736686233409,-242.44643237,9.975e-05,2]
[348625615,1736686233419,-500.0,9.975e-05,2]
[348625616,1736686233428,-503.00753096,9.975e-05,2]
[348625617,1736686233438,-1039.22,9.975e-05,2]
[348625618,1736686233448,-500.0,9.975e-05,2]
[348625619,1736686233458,-500.0,9.975e-05,2]
[348625620,1736686233467,-330.96115647,9.975e-05,2]
[348625621,1736686233830,-176.22884353,9.975e-05,2]
[348625622,1736686233840,-500.0,9.975e-05,2]
[348625623,1736686233849,-500.0,9.975e-05,2]
[348625624,1736686233859,-500.0,9.975e-05,2]
[348625625,1736686233869,-500.0,9.975e-05,2]
[348625626,1736686233879,-500.0,9.975e-05,2]
[348625627,1736686233889,-500.0,9.975e-05,2]
[348625628,1736686233898,-1391.18,9.975e-05,2]
[348625629,1736686233907,-562.23,9.975e-05,2]
[348625630,1736686233917,-500.0,9.975e-05,2]
[348625631,1736686233926,-1085.25,9.975e-05,2]
[348625632,1736686233936,-673.78,9.975e-05,2]
[348625633,1736686233945,-2673.18,9.975e-05,2]
[348625634,1736686233954,-500.0,9.975e-05,2]
[348625635,1736686233964,-500.0,9.975e-05,2]
[348625636,1736686233973,-500.0,9.975e-05,2]
[348625637,1736686233982,-500.0,9.975e-05,2]
[348625638,1736686233992,-502.95145243,9.975e-05,2]
[348625639,1736686234001,-1017.78,9.975e-05,2]
[348625640,1736686234010,-500.0,9.975e-05,2]
[348625641,1736686234019,-1308.57569804,9.975e-05,2]
[348625642,1736686234064,-857.76981249,9.975e-05,2]
[348625643,1736686234075,-324.85448947,9.975e-05,2]
[348625644,1736686234084,-636.34,9.975e-05,2]
[348625645,1736686234094,-38.80551053,9.975e-05,2]
[348625646,1736686234105,-385.12816666,9.975e-05,2]
[348625647,1736686234116,-76.06632281,9.975e-05,2]
[348625648,1736686234126,-500.0,9.975e-05,2]
[348625649,1736686234136,-2595.36,9.975e-05,2]
[348625650,1736686234145,-1611.11,9.975e-05,2]
[348625651,1736686234154,-500.0,9.975e-05,2]
[348625652,1736686234163,-500.0,9.975e-05,2]
[348625653,1736686234172,-537.1,9.975e-05,2]
[348625654,1736686234181,-1609.51,9.975e-05,2]
[348625655,1736686234190,-500.0,9.975e-05,2]
[348625656,1736686234200,-3853.29,9.975e-05,2]
[348625657,1736686234209,-500.0,9.975e-05,2]
[348625658,1736686234218,-1902.72,9.975e-05,2]
[348625659,1736686234228,-2159.97,9.975e-05,2]
[348625660,1736686234237,-500.0,9.975e-05,2]
[348625661,1736686234247,-1104.98,9.975e-05,2]
[348625662,1736686234256,-500.0,9.975e-05,2]
[348625663,1736686234265,-500.0,9.975e-05,2]
[348625664,1736686234274,-500.0,9.975e-05,2]
[348625665,1736686234284,-500.0,9.975e-05,2]
[348625666,1736686234294,-500.0,9.975e-05,2]
[348625667,1736686234303,-500.0,9.975e-05,2]
[348625668,1736686234312,-500.0,9.975e-05,2]
[348625669,1736686234322,-1443.21,9.975e-05,2]
[348625670,1736686234331,-332.2963978,9.975e-05,2]
[348625671,1736686234340,-2295.45,9.975e-05,2]
[348625672,1736686234349,-3463.15,9.975e-05,2]
[348625673,1736686234358,-500.0,9.975e-05,2]
[348625674,1736686234367,-500.0,9.975e-05,2]
[348625675,1736686234377,-500.0,9.975e-05,2]
[348625676,1736686234386,-508.5898225,9.975e-05,2]
[348625677,1736686234395,-500.0,9.975e-05,2]
[348625678,1736686234405,-500.0,9.975e-05,2]
[348625679,1736686234414,-504.06156845,9.975e-05,2]
[348625680,1736686234424,-1810.73,9.975e-05,2]
[348625681,1736686234434,-500.0,9.975e-05,2]
[348625682,1736686234444,-517.98056331,9.975e-05,2]
[348625683,1736686234453,-314.84150211,9.975e-05,2]
[348625684,1736686234462,-500.0,9.975e-05,2]
[348625685,1736686234471,-559.26,9.975e-05,2]
[348625686,1736686234480,-124.21942434,9.975e-05,2]
[348625687,1736686234508,-512.33756822,9.975e-05,2]
[348625688,1736686234518,-456.82036701,9.975e-05,2]
[348625689,1736686234529,-750.47963299,9.975e-05,2]
[348625690,1736686234538,-500.0,9.975e-05,2]
[348625691,1736686234548,-500.0,9.975e-05,2]
[348625692,1736686234558,-501.09277789,9.975e-05,2]
[348625693,1736686234568,-368.73491592,9.975e-05,2]
[348625694,1736686234585,-131.26508408,9.975e-05,2]
[348625695,1736686234596,-222.46492792,9.975e-05,2]
[348625696,1736686234615,-255.3829171,9.975e-05,2]
[348625697,1736686234626,-27.20607739,9.975e-05,2]
[348625698,1736686234635,-282.55392261,9.975e-05,2]
[348625699,1736686234647,-217.44607739,9.975e-05,2]
[348625700,1736686234657,-46.02471389,9.975e-05,2]
[348625701,1736686234669,-453.97528611,9.975e-05,2]
[348625702,1736686234679,-111.63868589,9.975e-05,2]
[348625703,1736686234691,-388.36131411,9.975e-05,2]
[348625704,1736686234700,-80.09077245,9.975e-05,2]
[348625705,1736686234711,-270.5539524,9.975e-05,2]
[348625706,1736686234724,-154.70134156,9.975e-05,2]
[348625707,1736686234733,-500.0,9.975e-05,2]
[348625708,1736686234744,-1017.89,9.975e-05,2]
[348625709,1736686234753,-3.40865844,9.975e-05,2]
[348625710,1736686234765,-595.743666,9.975e-05,2]
[348625711,1736686234796,-648.49767556,9.975e-05,2]
[348625712,1736686234805,-500.00128527,9.975e-05,2]
[348625713,1736686234815,-1047.18,9.976e-05,2]
[348625714,1736686234824,-673.95,9.976e-05,2]
[348625715,1736686234833,-500.0,9.976e-05,2]
[348625716,1736686234843,-500.0,9.976e-05,2]
[348625717,1736686234852,-500.0,9.976e-05,2]
[348625718,1736686234861,-775.77,9.976e-05,2]
[348625719,1736686234871,-500.0,9.976e-05,2]
[348625720,1736686234881,-500.0,9.976e-05,2]
[348625721,1736686234890,-500.0,9.976e-05,2]
[348625722,1736686234899,-1165.09,9.976e-05,2]
[348625723,1736686234908,-160.30359622,9.976e-05,2]
[348625724,1736686234918,-819.49,9.976e-05,2]
[348625725,1736686234927,-921.12,9.976e-05,2]
[348625726,1736686234937,-985.49,9.976e-05,2]
[348625727,1736686234946,-500.0,9.976e-05,2]
[348625728,1736686234955,-695.07,9.976e-05,2]
[348625729,1736686234965,-500.0,9.976e-05,2]
[348625730,1736686234975,-500.0,9.976e-05,2]
[348625731,1736686234985,-152.72426448,9.976e-05,2]
[348625732,1736686234995,-500.0,9.976e-05,2]
[348625733,1736686235004,-500.31623798,9.976e-05,2]
[348625734,1736686235014,-555.14,9.976e-05,2]
[348625735,1736686235024,-962.09,9.976e-05,2]
[348625736,1736686235033,-767.58,9.976e-05,2]
[348625737,1736686235043,-500.0,9.976e-05,2]
[348625738,1736686235055,-500.0,9.976e-05,2]
[348625739,1736686235065,-500.0,9.976e-05,2]
[348625740,1736686235073,-500.0,9.976e-05,2]
[348625741,1736686235082,-971.32,9.976e-05,2]
[348625742,1736686235091,-500.0,9.976e-05,2]
[348625743,1736686235100,-500.0,9.976e-05,2]
[348625744,1736686235109,-855.95,9.976e-05,2]
[348625745,1736686235118,-500.84308073,9.976e-05,2]
[348625746,1736686235127,-501.98221632,9.976e-05,2]
[348625747,1736686235136,-500.0,9.976e-05,2]
[348625748,1736686235145,-582.02,9.976e-05,2]
[348625749,1736686235154,-501.09738004,9.976e-05,2]
[348625750,1736686235163,-500.0,9.976e-05,2]
[348625751,1736686235172,-500.0,9.976e-05,2]
[348625752,1736686235182,-460.33591213,9.976e-05,2]
[348625758,1736686238241,-589.7,9.975e-05,2]
[348625759,1736686238251,-39.66188656,9.976e-05,2]
[348625760,1736686238261,-500.0,9.976e-05,2]
[348625761,1736686238270,-500.0,9.976e-05,2]
[348625762,1736686238279,-545.42,9.976e-05,2]
[348625763,1736686238290,-500.0,9.976e-05,2]
[348625764,1736686238299,-500.61787739,9.976e-05,2]
[348625765,1736686238309,-500.81693741,9.976e-05,2]
[348625766,1736686238318,-231.46368057,9.976e-05,2]
[348625767,1736686238327,-526.04,9.976e-05,2]
[348625768,1736686238336,-500.83393922,9.976e-05,2]
[348625769,1736686238346,-575.05,9.976e-05,2]
[348625770,1736686238355,-988.07,9.976e-05,2]
[348625771,1736686238364,-500.0,9.976e-05,2]
[348625772,1736686238373,-350.44844237,9.976e-05,2]
[348625773,1736686238382,-850.93,9.976e-05,2]
[348625774,1736686238392,-1035.49,9.976e-05,2]
[348625775,1736686238401,-459.5295527,9.976e-05,2]
[348625776,1736686238410,-501.03109747,9.976e-05,2]
[348625777,1736686238419,-500.0,9.976e-05,2]
[348625778,1736686238429,-500.49234578,9.976e-05,2]
[348625779,1736686238438,-500.0,9.976e-05,2]
[348625780,1736686238447,-686.21,9.976e-05,2]
[348625781,1736686238456,-500.0,9.976e-05,2]
[348625782,1736686238465,-1870.78,9.976e-05,2]
[348625783,1736686238475,-500.0,9.976e-05,2]
[348625784,1736686238484,-911.82,9.976e-05,2]
[348625785,1736686238493,-501.08004424,9.976e-05,2]
[348625786,1736686238501,-603.81872215,9.976e-05,2]
[348625787,1736686238511,-532.86,9.976e-05,2]
[348625788,1736686238522,-501.1752285,9.976e-05,2]
[348625789,1736686238531,-500.0,9.976e-05,2]
[348625790,1736686238541,-500.0,9.976e-05,2]
[348625791,1736686238550,-500.0,9.976e-05,2]
[348625792,1736686238559,-500.0,9.976e-05,2]
[348625793,1736686238569,-500.0,9.976e-05,2]
[348625794,1736686238580,-500.0,9.976e-05,2]
[348625795,1736686238589,-934.98,9.976e-05,2]
[348625796,1736686238598,-610.641459,9.976e-05,2]
[348625797,1736686238607,-509.14,9.976e-05,2]
[348625798,1736686238617,-500.47567859,9.976e-05,2]
[348625800,1736686238626,-502.00967568,9.976e-05,2]
[348625802,1736686238635,-500.0,9.976e-05,2]
[348625803,1736686238644,-500.0,9.976e-05,2]
[348625805,1736686238655,-689.35,9.976e-05,2]
[348625807,1736686238664,-2707.86,9.976e-05,2]
[348625809,1736686238673,-500.20044793,9.976e-05,2]
[348625811,1736686238682,-500.0,9.976e-05,2]
[348625812,1736686238691,-500.39228216,9.976e-05,2]
[348625814,1736686238700,-500.0,9.976e-05,2]
[348625816,1736686238710,-166.0287352,9.976e-05,2]
[348625818,1736686238719,-500.71960789,9.976e-05,2]
[348625820,1736686238728,-500.0,9.976e-05,2]
[348625822,1736686238737,-500.0,9.976e-05,2]
[348625824,1736686238747,-500.0,9.976e-05,2]
[348625826,1736686238756,-962.05,9.976e-05,2]
[348625827,1736686238765,-500.73460745,9.976e-05,2]
[348625829,1736686238774,-500.0,9.976e-05,2]
[348625831,1736686238784,-501.40447644,9.976e-05,2]
[348625833,1736686238793,-597.56,9.976e-05,2]
[348625835,1736686238802,-2025.42,9.976e-05,2]
[348625837,1736686238811,-500.0,9.976e-05,2]
[348625838,1736686238820,-790.38,9.976e-05,2]
[348625840,1736686238829,-500.0,9.976e-05,2]
[348625842,1736686238839,-500.0,9.976e-05,2]
[348625844,1736686238848,-500.45105783,9.976e-05,2]
[348625846,1736686238857,-500.0,9.976e-05,2]
[348625848,1736686238866,-500.0,9.976e-05,2]
[348625849,1736686238875,-500.0,9.976e-05,2]
[348625851,1736686238884,-501.52199765,9.976e-05,2]
[348625853,1736686238893,-501.55797535,9.976e-05,2]
[348625855,1736686238902,-892.09,9.976e-05,2]
[348625857,1736686238911,-801.33,9.976e-05,2]
[348625858,1736686238921,-1595.9,9.976e-05,2]
[348625860,1736686238930,-500.0,9.976e-05,2]
[348625862,1736686238939,-500.0,9.976e-05,2]
[348625864,1736686238949,-500.0,9.976e-05,2]
[348625866,1736686238958,-608.721321,9.976e-05,2]
[348625868,1736686238967,-537.08,9.976e-05,2]
[348625870,1736686238976,-500.0,9.976e-05,2]
[348625872,1736686238985,-500.0,9.976e-05,2]
[348625874,1736686238995,-500.0,9.976e-05,2]
[348625876,1736686239003,-743.63,9.976e-05,2]
[348625877,1736686239012,-500.0,9.976e-05,2]
[348625879,1736686239021,-565.3262638,9.976e-05,2]
[348625881,1736686239032,-872.76,9.976e-05,2]
[348625883,1736686239041,-500.90465725,9.976e-05,2]
[348625885,1736686239050,-860.09,9.976e-05,2]
[348625887,1736686239059,-779.09542,9.976e-05,2]
[348625889,1736686239068,-723.27,9.976e-05,2]
[348625890,1736686239077,-565.6,9.976e-05,2]
[348625892,1736686239086,-501.17877521,9.976e-05,2]
[348625894,1736686239095,-157.994959,9.976e-05,2]
[348625896,1736686239104,-500.0,9.976e-05,2]
[348625898,1736686239113,-500.0,9.976e-05,2]
[348625900,1736686239122,-3830.01,9.976e-05,2]
[348625902,1736686239131,-1379.82,9.976e-05,2]
[348625903,1736686239141,-667.69,9.976e-05,2]
[348625905,1736686239150,-641.58,9.976e-05,2]
[348625907,1736686239158,-803.81,9.976e-05,2]
[348625909,1736686239167,-1159.59,9.976e-05,2]
[348625911,1736686239176,-568.14,9.976e-05,2]
[348625913,1736686239185,-502.22281947,9.976e-05,2]
[348625915,1736686239194,-458.34264845,9.976e-05,2]
[348625917,1736686239203,-609.17,9.976e-05,2]
[348625918,1736686239212,-779.28,9.976e-05,2]
[348625920,1736686239222,-500.0,9.976e-05,2]
[348625922,1736686239232,-500.0,9.976e-05,2]
[348625924,1736686239242,-728.62,9.976e-05,2]
[348625926,1736686239251,-1330.4,9.976e-05,2]
[348625928,1736686239260,-507.08,9.976e-05,2]
[348625930,1736686239270,-1012.71,9.976e-05,2]
[348625932,1736686239279,-500.0,9.976e-05,2]
[348625934,1736686239289,-500.0,9.976e-05,2]
[348625935,1736686239298,-665.16,9.976e-05,2]
[348625937,1736686239307,-659.87,9.976e-05,2]
[348625939,1736686239316,-4885.15,9.976e-05,2]
[348625941,1736686239325,-1029.99,9.976e-05,2]
[348625943,1736686239334,-886.31,9.976e-05,2]
[348625945,1736686239342,-1195.22,9.976e-05,2]
[348625946,1736686239351,-751.13,9.976e-05,2]
[348625948,1736686239360,-591.33,9.976e-05,2]
[348625950,1736686239369,-540.69,9.976e-05,2]
[348625952,1736686239378,-500.0,9.976e-05,2]
[348625954,1736686239386,-3329.57,9.976e-05,2]
[348625956,1736686239396,-909.19,9.976e-05,2]
[348625958,1736686239405,-505.3,9.976e-05,2]
[348625960,1736686239416,-694.97,9.976e-05,2]
[348625961,1736686239425,-3242.44,9.976e-05,2]
[348625962,1736686239434,-790.69,9.976e-05,2]
[348625963,1736686239443,-517.52,9.976e-05,2]
[348625964,1736686239451,-624.63,9.976e-05,2]
[348625965,1736686239460,-3367.97,9.976e-05,2]
[348625966,1736686239470,-796.46,9.976e-05,2]
[348625967,1736686239479,-871.19,9.976e-05,2]
[348625968,1736686239488,-472.86406022,9.976e-05,2]
[348625969,1736686239497,-500.0,9.976e-05,2]
[348625970,1736686239506,-685.14,9.976e-05,2]
[348625971,1736686239515,-500.0,9.976e-05,2]
[348625972,1736686239524,-755.59,9.976e-05,2]
[348625973,1736686239534,-883.78,9.976e-05,2]
[348625974,1736686239543,-500.0,9.976e-05,2]
[348625975,1736686239552,-590.8,9.976e-05,2]
[348625976,1736686239561,-504.50039644,9.977e-05,2]
[348625978,1736686239571,-500.0,9.977e-05,2]
[348625980,1736686239584,-506.71555151,9.977e-05,2]
[348625981,1736686239593,-500.0,9.977e-05,2]
[348625984,1736686239603,-500.0,9.977e-05,2]
[348625985,1736686239612,-504.42083608,9.977e-05,2]
[348625987,1736686239622,-500.0,9.977e-05,2]
[348625989,1736686239632,-500.0,9.977e-05,2]
[348625991,1736686239642,-501.65682955,9.977e-05,2]
[348625993,1736686239653,-501.52645156,9.977e-05,2]
[348625996,1736686239662,-502.99498394,9.977e-05,2]
[348625998,1736686239671,-502.45449549,9.977e-05,2]
[348626000,1736686239681,-682.49,9.977e-05,2]
[348626001,1736686239690,-500.0,9.977e-05,2]
[348626003,1736686239699,-504.50814447,9.977e-05,2]
[348626006,1736686239708,-500.0,9.977e-05,2]
[348626007,1736686239718,-500.0,9.977e-05,2]
[348626010,1736686239728,-486.56467089,9.977e-05,2]
[348626011,1736686239737,-509.03657847,9.977e-05,2]
[348626013,1736686239746,-508.15097911,9.977e-05,2]
[348626015,1736686239756,-500.0,9.977e-05,2]
[348626017,1736686239765,-500.0,9.977e-05,2]
[348626019,1736686239775,-505.47049183,9.977e-05,2]
[348626021,1736686239785,-502.65050058,9.977e-05,2]
[348626023,1736686239795,-500.0,9.977e-05,2]
[348626025,1736686239804,-503.66757993,9.977e-05,2]
[348626027,1736686239813,-511.22985789,9.977e-05,2]
[348626029,1736686239822,-501.76550144,9.977e-05,2]
[348626031,1736686239832,-500.0,9.977e-05,2]
[348626033,1736686239842,-500.0,9.977e-05,2]
[348626035,1736686239852,-503.76407799,9.977e-05,2]
[348626037,1736686239861,-500.0,9.977e-05,2]
[348626039,1736686239870,-354.08948099,9.977e-05,2]
[348626041,1736686239880,-507.32160035,9.977e-05,2]
[348626043,1736686239889,-500.0,9.977e-05,2]
[348626045,1736686239898,-500.0,9.977e-05,2]
[348626047,1736686239907,-504.49719731,9.977e-05,2]
[348626049,1736686239916,-581.6492401,9.977e-05,2]
[348626051,1736686239926,-500.0,9.977e-05,2]
[348626053,1736686239935,-500.0,9.977e-05,2]
[348626055,1736686239944,-500.0,9.977e-05,2]
[348626057,1736686239953,-500.0,9.977e-05,2]
[348626059,1736686239963,-502.589287,9.977e-05,2]
[348626061,1736686239972,-500.0,9.977e-05,2]
[348626063,1736686239981,-500.0,9.977e-05,2]
[348626065,1736686239991,-500.0,9.977e-05,2]
[348626067,1736686240000,-500.0,9.977e-05,2]
[348626070,1736686240009,-500.0,9.977e-05,2]
[348626073,1736686240018,-505.81854637,9.977e-05,2]
[348626075,1736686240027,-943.61,9.977e-05,2]
[348626077,1736686240037,-500.0,9.977e-05,2]
[348626079,1736686240046,-509.80234045,9.977e-05,2]
[348626081,1736686240055,-500.0,9.977e-05,2]
[348626083,1736686240064,-500.0,9.977e-05,2]
[348626085,1736686240073,-500.0,9.977e-05,2]
[348626087,1736686240082,-500.0,9.977e-05,2]
[348626089,1736686240091,-638.63,9.977e-05,2]
[348626091,1736686240101,-500.0,9.977e-05,2]
[348626093,1736686240110,-500.0,9.977e-05,2]
[348626094,1736686240120,-500.0,9.977e-05,2]
[348626097,1736686240130,-500.0,9.977e-05,2]
[348626099,1736686240139,-669.24,9.977e-05,2]
[348626100,1736686240148,-500.0,9.977e-05,2]
[348626102,1736686240157,-500.0,9.977e-05,2]
[348626104,1736686240166,-500.0,9.977e-05,2]
[348626107,1736686240176,-500.0,9.977e-05,2]
[348626108,1736686240185,-500.0,9.977e-05,2]
[348626111,1736686240195,-509.77,9.977e-05,2]
[348626113,1736686240205,-500.0,9.977e-05,2]
[348626115,1736686240214,-500.0,9.977e-05,2]
[348626117,1736686240226,-500.0,9.977e-05,2]
[348626119,1736686240235,-500.0,9.977e-05,2]
[348626121,1736686240245,-500.0,9.977e-05,2]
[348626123,1736686240254,-500.0,9.977e-05,2]
[348626125,1736686240263,-498.95213334,9.977e-05,2]
[348626127,1736686240272,-500.0,9.977e-05,2]
[348626128,1736686240282,-500.0,9.977e-05,2]
[348626130,1736686240292,-500.0,9.977e-05,2]
[348626133,1736686240301,-500.0,9.977e-05,2]
[348626135,1736686240311,-507.18025732,9.977e-05,2]
[348626137,1736686240320,-588.58690907,9.977e-05,2]
[348626139,1736686240329,-500.0,9.977e-05,2]
[348626140,1736686240338,-500.0,9.977e-05,2]
[348626142,1736686240348,-500.0,9.977e-05,2]
[348626144,1736686240357,-500.0,9.977e-05,2]
[348626146,1736686240366,-500.0,9.977e-05,2]
[348626148,1736686240376,-500.0,9.977e-05,2]
[348626150,1736686240385,-500.0,9.977e-05,2]
[348626152,1736686240394,-500.0,9.977e-05,2]
[348626154,1736686240403,-216.23,9.977e-05,2]
[348626156,1736686240413,-500.0,9.977e-05,2]
[348626158,1736686240423,-500.0,9.977e-05,2]
[348626160,1736686240433,-560.13,9.977e-05,2]
[348626162,1736686240442,-500.0,9.977e-05,2]
[348626164,1736686240452,-500.0,9.977e-05,2]
[348626166,1736686240461,-500.0,9.977e-05,2]
[348626168,1736686240470,-500.0,9.977e-05,2]
[348626170,1736686240480,-500.0,9.977e-05,2]
[348626172,1736686240489,-625.9,9.977e-05,2]
[348626174,1736686240498,-500.0,9.977e-05,2]
[348626176,1736686240507,-500.0,9.977e-05,2]
[348626179,1736686240517,-691.61,9.977e-05,2]
[348626180,1736686240526,-507.64,9.977e-05,2]
[348626182,1736686240535,-500.0,9.977e-05,2]
[348626184,1736686240544,-518.22,9.977e-05,2]
[348626186,1736686240553,-500.0,9.977e-05,2]
[348626188,1736686240562,-500.0,9.977e-05,2]
[348626190,1736686240571,-500.0,9.977e-05,2]
[348626192,1736686240584,-500.0,9.977e-05,2]
[348626194,1736686240593,-500.0,9.977e-05,2]
[348626196,1736686240602,-681.27,9.977e-05,2]
[348626198,1736686240611,-500.0,9.977e-05,2]
[348626199,1736686240620,-591.49,9.977e-05,2]
[348626200,1736686240630,-859.32,9.977e-05,2]
[348626201,1736686240639,-500.0,9.977e-05,2]
[348626202,1736686240647,-500.0,9.977e-05,2]
[348626203,1736686240656,-500.0,9.977e-05,2]
[348626204,1736686240665,-500.0,9.977e-05,2]
[348626205,1736686240674,-649.23,9.977e-05,2]
[348626206,1736686240682,-268.28155592,9.977e-05,2]
[348626207,1736686240691,-500.0,9.977e-05,2]
[348626208,1736686240700,-876.39,9.977e-05,2]
[348626209,1736686240709,-500.0,9.977e-05,2]
[348626210,1736686240717,-587.95,9.977e-05,2]
[348626211,1736686240727,-627.84,9.977e-05,2]
[348626212,1736686240735,-500.0,9.977e-05,2]
[348626213,1736686240744,-500.0,9.977e-05,2]
[348626214,1736686240753,-500.0,9.977e-05,2]
[348626215,1736686240762,-500.0,9.977e-05,2]
[348626216,1736686240771,-718.48,9.977e-05,2]
[348626217,1736686240780,-500.0,9.977e-05,2]
[348626218,1736686240791,-500.0,9.977e-05,2]
[348626219,1736686240800,-500.0,9.977e-05,2]
[348626220,1736686240810,-653.11,9.977e-05,2]
[348626221,1736686240820,-524.64,9.977e-05,2]
[348626222,1736686240829,-500.0,9.977e-05,2]
[348626223,1736686240838,-500.0,9.977e-05,2]
[348626224,1736686240847,-500.0,9.977e-05,2]
[348626225,1736686240856,-500.0,9.977e-05,2]
[348626226,1736686240866,-500.0,9.977e-05,2]
[348626227,1736686240875,-688.11,9.977e-05,2]
[348626228,1736686240884,-500.0,9.977e-05,2]
[348626229,1736686240893,-587.96,9.977e-05,2]
[348626230,1736686240902,-500.0,9.977e-05,2]
[348626231,1736686240912,-500.0,9.977e-05,2]
[348626233,1736686240921,-500.0,9.977e-05,2]
[348626235,1736686240931,-500.0,9.977e-05,2]
[348626237,1736686240939,-500.0,9.977e-05,2]
[348626239,1736686240949,-575.31,9.977e-05,2]
[348626241,1736686240958,-500.0,9.977e-05,2]
[348626243,1736686240967,-500.86353367,9.977e-05,2]
[348626245,1736686240976,-500.0,9.977e-05,2]
[348626247,1736686240985,-727.42,9.977e-05,2]
[348626249,1736686240994,-500.0,9.977e-05,2]
[348626251,1736686241004,-571.03,9.977e-05,2]
[348626253,1736686241013,-634.58,9.977e-05,2]
[348626255,1736686241022,-500.0,9.977e-05,2]
[348626257,1736686241031,-500.0,9.977e-05,2]
[348626259,1736686241041,-500.0,9.977e-05,2]
[348626261,1736686241050,-500.0,9.977e-05,2]
[348626263,1736686241059,-500.0,9.977e-05,2]
[348626265,1736686241069,-500.0,9.977e-05,2]
[348626267,1736686241078,-500.0,9.977e-05,2]
[348626269,1736686241087,-500.0,9.977e-05,2]
[348626271,1736686241096,-297.04014465,9.977e-05,2]
[348626273,1736686241106,-515.75,9.977e-05,2]
[348626275,1736686241115,-500.0,9.977e-05,2]
[348626277,1736686241124,-500.0,9.977e-05,2]
[348626279,1736686241133,-500.0,9.977e-05,2]
[348626281,1736686241142,-500.0,9.977e-05,2]
[348626283,1736686241151,-535.33894004,9.977e-05,2]
[348626285,1736686241160,-500.0,9.977e-05,2]
[348626287,1736686241169,-500.0,9.977e-05,2]
[348626289,1736686241178,-500.0,9.977e-05,2]
[348626291,1736686241187,-500.0,9.977e-05,2]
[348626293,1736686241196,-500.0,9.977e-05,2]
[348626307,1736686241365,-500.0,9.977e-05,2]
[348626308,1736686241375,-434.40653801,9.977e-05,2]
[348626309,1736686241383,-500.0,9.977e-05,2]
[348626310,1736686241394,-500.0,9.977e-05,2]
[348626311,1736686241403,-500.0,9.977e-05,2]
[348626312,1736686241413,-570.58,9.977e-05,2]
[348626313,1736686241422,-523.12,9.977e-05,2]
[348626314,1736686241431,-500.0,9.977e-05,2]
[348626315,1736686241442,-500.0,9.977e-05,2]
[348626316,1736686241451,-500.0,9.977e-05,2]
[348626317,1736686241461,-500.0,9.977e-05,2]
[348626318,1736686241470,-500.8688644,9.977e-05,2]
[348626319,1736686241479,-513.81098143,9.977e-05,2]
[348626320,1736686241488,-501.60866637,9.977e-05,2]
[348626321,1736686241497,-500.0,9.977e-05,2]
[348626322,1736686241507,-596.42,9.977e-05,2]
[348626323,1736686241515,-500.0,9.977e-05,2]
[348626324,1736686241524,-1441.62,9.977e-05,2]
[348626325,1736686241533,-504.56988945,9.977e-05,2]
[348626326,1736686241543,-500.0,9.977e-05,2]
[348626327,1736686241552,-766.59,9.977e-05,2]
[348626328,1736686241561,-425.03194397,9.977e-05,2]
[348626329,1736686241570,-500.0,9.977e-05,2]